bitfinex-derivatives/quotes_BTCF0:USTF0_20230402
["timestamp","ask_amount","ask_price","bid_price","bid_amount"]
[1680454906169,0.05,28138.0,28133.0,0.0711]
[1680454906369,0.3716,28135.0,28133.0,0.0711]
[1680454907461,0.3736,28135.0,28133.0,0.0801]
[1680454909472,0.3716,28135.0,28133.0,0.0711]
[1680454909667,0.3736,28135.0,28133.0,0.0711]
[1680454916472,0.0729,28135.0,28133.0,0.0711]
[1680454920270,0.0731,28135.0,28133.0,0.0711]
[1680454921982,0.002,28135.0,28134.0,0.071]
[1680454943697,0.002,28135.0,28134.0,0.3717]
[1680454945798,0.002,28135.0,28134.0,0.071]
[1680454948395,0.002,28135.0,28134.0,0.3717]
[1680454960112,0.002,28135.0,28134.0,0.37156175]
[1680454970322,0.16178098,28137.0,28134.0,0.58486175]
[1680454970520,0.05414092,28140.0,28137.0,0.0704]
[1680454970721,0.3007,28142.0,28139.0,0.3718]
[1680454970917,0.3007,28142.0,28141.0,0.0711]
[1680454971228,0.3541203,28142.0,28141.0,0.0711]
[1680454971722,0.3811203,28142.0,28141.0,0.0711]
[1680454972129,0.3811203,28142.0,28141.0,0.0721]
[1680454974123,0.0804203,28142.0,28141.0,0.0721]
[1680454984623,0.5020203,28142.0,28141.0,0.001]
[1680454985637,0.67224239,28142.0,28141.0,0.001]
[1680454985934,0.5020203,28142.0,28141.0,0.001]
[1680454986637,0.67224281,28142.0,28141.0,0.001]
[1680454987136,0.67224199,28142.0,28141.0,0.001]
[1680454987732,0.62224199,28142.0,28141.0,0.001]
[1680454992035,0.62244199,28142.0,28141.0,0.001]
[1680454992833,0.4522203,28142.0,28141.0,0.001]
[1680454993030,0.1515203,28142.0,28141.0,0.001]
[1680454993230,0.4522203,28142.0,28141.0,0.001]
[1680454998043,0.0804203,28142.0,28141.0,0.0715]
[1680454998240,0.0804203,28142.0,28141.0,0.07356122]
[1680454999446,0.04108656,28142.0,28141.0,0.28646122]
[1680454999647,1.54,28146.0,28141.0,0.28646122]
[1680454999847,1.54,28146.0,28145.0,0.0711]
[1680455000145,1.54,28146.0,28145.0,0.1211]
[1680455000541,1.54,28146.0,28145.0,0.1922]
[1680455000947,1.543,28146.0,28145.0,0.1922]
[1680455001136,1.543,28146.0,28145.0,0.20627239]
[1680455001446,1.543,28146.0,28145.0,0.20827239]
[1680455001842,1.543,28146.0,28145.0,0.20627239]
[1680455002034,1.54,28146.0,28145.0,0.20727239]
[1680455004045,0.51710639,28146.0,28145.0,0.74947239]
[1680455004247,0.50960639,28146.0,28145.0,0.89167239]
[1680455004544,0.46050639,28146.0,28145.0,0.89167239]
[1680455004747,0.46050639,28146.0,28145.0,0.74947239]
[1680455005244,0.43650639,28146.0,28145.0,1.15570183]
[1680455005850,0.43650639,28146.0,28145.0,1.29790183]
[1680455006046,0.37390639,28146.0,28145.0,1.29790183]
[1680455006646,0.37390639,28146.0,28145.0,1.16870183]
[1680455007445,0.37390639,28146.0,28145.0,1.17570183]
[1680455009656,0.05390639,28146.0,28145.0,1.53120183]
[1680455009953,0.05390639,28146.0,28145.0,1.17610183]
[1680455012149,0.05390639,28146.0,28145.0,1.31830183]
[1680455012349,0.05390639,28146.0,28145.0,1.67480183]
[1680455013559,6.39e-06,28146.0,28145.0,1.67480183]
[1680455015260,5.57e-06,28151.0,28145.0,1.88810183]
[1680455015463,0.17022169,28160.0,28150.0,1.2395]
[1680455015753,0.17022169,28160.0,28153.0,0.3007]
[1680455015951,0.05,28158.0,28153.0,0.3007]
[1680455016153,0.05,28158.0,28154.0,0.02604587]
[1680455016358,0.3007,28156.0,28155.0,0.0711]
[1680455016757,0.05,28156.0,28155.0,0.0711]
[1680455017257,0.05,28156.0,28155.0,0.0721]
[1680455017556,0.3507,28156.0,28155.0,0.0721]
[1680455018353,0.3507,28156.0,28155.0,0.09814771]
[1680455018759,0.10270239,28156.0,28155.0,0.09814771]
[1680455019159,0.10270239,28156.0,28155.0,0.09794771]
[1680455019454,0.05270239,28156.0,28155.0,0.09794771]
[1680455019660,0.05,28158.0,28155.0,0.31094771]
[1680455019962,0.52092169,28159.0,28157.0,0.0711]
[1680455020153,0.3007,28159.0,28158.0,0.0705]
[1680455020354,0.47092169,28159.0,28158.0,0.0705]
[1680455020754,0.3007,28159.0,28158.0,0.0705]
[1680455021360,0.3007,28159.0,28158.0,0.0725]
[1680455022258,0.3007,28159.0,28158.0,0.0731]
[1680455022460,0.57800455,28162.0,28158.0,0.1437]
[1680455022759,0.57800455,28162.0,28161.0,0.0705]
[1680455022760,0.40778286,28162.0,28161.0,0.0705]
[1680455023162,0.3007,28162.0,28161.0,0.0705]
[1680455023861,0.3718,28162.0,28161.0,0.002]
[1680455025864,0.4218,28162.0,28161.0,0.002]
[1680455026266,0.3718,28162.0,28161.0,0.002]
[1680455027071,0.3717,28162.0,28161.0,0.002]
[1680455028272,0.3007,28162.0,28161.0,0.073]
[1680455028577,0.3007,28162.0,28161.0,0.10229052]
[1680455028876,0.3717,28162.0,28161.0,0.03129052]
[1680455030078,0.3007,28162.0,28161.0,0.10229052]
[1680455030576,0.1064227,28163.0,28161.0,0.10229052]
[1680455030777,0.797,28165.0,28162.0,0.0704]
[1680455030973,0.4703,28165.0,28163.0,0.071]
[1680455031170,0.4703,28165.0,28163.0,0.10266814]
[1680455031476,0.42428256,28166.0,28163.0,0.0707]
[1680455031881,0.42428256,28166.0,28163.0,0.0727]
[1680455032081,0.071,28165.0,28163.0,0.073]
[1680455032276,0.05,28164.0,28163.0,0.073]
[1680455032978,0.121,28165.0,28163.0,0.073]
[1680455033170,0.121,28165.0,28163.0,0.072]
[1680455034082,0.05,28164.0,28163.0,0.072]
[1680455034283,0.05,28164.0,28163.0,0.073]
[1680455034678,0.071,28165.0,28163.0,0.073]
[1680455034880,0.4574172,28166.0,28164.0,0.0704]
[1680455035079,0.1209,28165.0,28163.0,0.0729]
[1680455035276,0.1209,28165.0,28164.0,0.0704]
[1680455035481,0.4574172,28166.0,28164.0,0.0704]
[1680455035680,0.4574172,28166.0,28165.0,0.0704]
[1680455035881,0.5074172,28166.0,28165.0,0.0704]
[1680455036482,0.5784172,28166.0,28164.0,0.03493966]
[1680455036783,0.05,28165.0,28164.0,0.03493966]
[1680455037086,0.05,28165.0,28164.0,0.03293942]
[1680455037279,0.5784172,28166.0,28164.0,0.03293942]
[1680455037581,0.5784172,28166.0,28164.0,0.002]
[1680455037783,0.5784172,28166.0,28165.0,0.0704]
[1680455037784,0.4574172,28166.0,28165.0,0.0704]
[1680455038280,0.5284172,28166.0,28165.0,0.03293925]
[1680455038488,0.4574172,28166.0,28165.0,0.10373925]
[1680455038788,0.78354283,28166.0,28165.0,0.002]
[1680455038973,0.78354283,28166.0,28165.0,0.03493913]
[1680455039178,0.71294283,28166.0,28165.0,0.073]
[1680455039374,0.71294283,28166.0,28165.0,0.10593909]
[1680455040586,0.78334283,28166.0,28165.0,0.03493909]
[1680455040984,0.5278172,28166.0,28165.0,0.03493909]
[1680455041383,0.4574172,28166.0,28165.0,0.10553909]
[1680455041784,0.71181744,28166.0,28165.0,0.03493909]
[1680455041986,0.78221744,28166.0,28165.0,0.03493909]
[1680455042289,0.8081172,28166.0,28165.0,0.0724]
[1680455042484,0.8081172,28166.0,28162.0,0.03150951]
[1680455042485,0.05,28165.0,28162.0,0.03150951]
[1680455042786,0.3007,28163.0,28157.0,0.0706]
[1680455043088,0.3007,28163.0,28154.0,0.2632]
[1680455043089,0.3007,28158.0,28154.0,0.2632]
[1680455043278,0.3007,28158.0,28157.0,0.0708]
[1680455044286,0.3007,28158.0,28157.0,0.0908]
[1680455045789,0.3007,28158.0,28157.0,0.3038]
[1680455045984,0.3007,28158.0,28157.0,0.1618]
[1680455047579,0.72491567,28158.0,28155.0,0.071]
[1680455047784,0.1209,28157.0,28155.0,0.071]
[1680455048190,0.0709,28157.0,28155.0,0.071]
[1680455049893,0.0729,28157.0,28155.0,0.087]
[1680455050288,0.0729,28157.0,28156.0,0.01658717]
[1680455050692,0.0789,28157.0,28156.0,0.01658717]
[1680455051287,0.008,28157.0,28156.0,0.08758717]
[1680455051684,0.079,28157.0,28156.0,0.01658717]
[1680455051996,0.0786,28157.0,28156.0,0.01658717]
[1680455052383,0.0786,28157.0,28156.0,0.001]
[1680455052786,0.1286,28157.0,28156.0,0.001]
[1680455053092,0.24821281,28157.0,28156.0,0.001]
[1680455058997,0.24872641,28157.0,28156.0,0.001]
[1680455059590,0.0786,28157.0,28156.0,0.001]
[1680455060300,0.24872859,28157.0,28156.0,0.001]
[1680455060693,0.05,28156.0,28155.0,0.0704]
[1680455061994,0.1203,28156.0,28153.0,0.071]
[1680455062191,0.3007,28154.0,28153.0,0.071]
[1680455063497,0.3017,28154.0,28153.0,0.083]
[1680455067297,0.3017,28154.0,28146.0,0.305]
[1680455067298,0.3723,28154.0,28146.0,0.305]
[1680455067604,0.3007,28147.0,28144.0,0.121]
[1680455067904,0.3007,28147.0,28146.0,0.0709]
[1680455068599,0.3007,28147.0,28146.0,0.0749]
[1680455068804,0.3007,28147.0,28146.0,0.0709]
[1680455069004,0.3007,28147.0,28146.0,0.004]
[1680455069005,0.3727,28147.0,28146.0,0.004]
[1680455071607,0.3017,28147.0,28146.0,0.0744]
[1680455071807,0.372,28147.0,28146.0,0.004]
[1680455071999,0.3017,28147.0,28146.0,0.004]
[1680455073804,0.35533975,28147.0,28146.0,0.004]
[1680455075100,0.35533975,28147.0,28146.0,0.0748]
[1680455075603,0.35533975,28147.0,28146.0,0.0744]
[1680455076109,0.42633975,28147.0,28146.0,0.004]
[1680455084413,0.001,28147.0,28146.0,0.0745]
[1680455084714,0.001,28147.0,28146.0,0.1245]
[1680455085120,0.001,28147.0,28146.0,0.1951]
[1680455087107,0.001,28147.0,28146.0,0.1428]
[1680455100616,0.001,28147.0,28146.0,0.0928]
[1680455102124,0.001,28147.0,28146.0,0.004]
[1680455110428,0.001,28147.0,28146.0,0.0927]
[1680455111131,0.001,28147.0,28146.0,0.1427]
[1680455116731,0.001,28147.0,28146.0,0.0927]
[1680455117134,0.001,28147.0,28146.0,0.1427]
[1680455120635,0.001,28147.0,28146.0,0.1425465]
[1680455123443,0.17112859,28147.0,28146.0,0.1425465]
[1680455123743,0.17112859,28147.0,28146.0,0.0925465]
[1680455126848,0.001,28147.0,28146.0,0.0925465]
[1680455127437,0.17142323,28147.0,28146.0,0.0925465]
[1680455127642,0.22142323,28147.0,28146.0,0.0038465]
[1680455127947,0.05,28146.0,28142.0,0.3007]
[1680455128139,0.088,28145.0,28142.0,0.3007]
[1680455128339,0.05,28144.0,28142.0,0.3007]
[1680455128745,0.138,28145.0,28142.0,0.3007]
[1680455128946,0.14,28145.0,28142.0,0.3027]
[1680455129741,0.09,28145.0,28142.0,0.3027]
[1680455129946,0.003,28144.0,28142.0,0.0908]
[1680455130342,0.3007,28143.0,28142.0,0.0888]
[1680455131548,0.3007,28143.0,28142.0,0.0908]
[1680455132051,0.3017,28143.0,28142.0,0.002]
[1680455138049,0.001,28143.0,28142.0,0.1408]
[1680455140953,0.00975333,28143.0,28142.0,0.1408]
[1680455141154,0.001,28143.0,28142.0,0.1408]
[1680455150451,0.001,28143.0,28142.0,0.0908]
[1680455152147,0.001,28143.0,28142.0,0.0731]
[1680455155255,0.001,28143.0,28142.0,0.1442]
[1680455155958,0.00975723,28143.0,28142.0,0.1442]
[1680455156155,0.001,28143.0,28142.0,0.1442]
[1680455157355,0.3007,28148.0,28143.0,0.1922]
[1680455157557,0.3007,28148.0,28147.0,0.0706]
[1680455157958,0.47113389,28148.0,28147.0,0.0706]
[1680455158961,0.49513389,28148.0,28147.0,0.0716]
[1680455159364,0.47113389,28148.0,28147.0,0.0726]
[1680455161958,0.47113389,28148.0,28147.0,0.0728]
[1680455162865,0.17043389,28148.0,28147.0,0.0728]
[1680455164068,0.29153389,28148.0,28145.0,0.0711]
[1680455164263,0.3007,28146.0,28145.0,0.0711]
[1680455164460,0.3507,28146.0,28145.0,0.0711]
[1680455164659,0.3007,28146.0,28145.0,0.0711]
[1680455165058,0.29143389,28147.0,28145.0,0.0711]
[1680455165362,0.3017,28146.0,28145.0,0.0831]
[1680455171070,0.32746109,28146.0,28145.0,0.0721]
[1680455171259,0.37746109,28146.0,28145.0,0.0711]
[1680455171458,0.32746109,28146.0,28145.0,0.0721]
[1680455171970,0.31446109,28146.0,28144.0,0.0706]
[1680455174672,0.32746109,28146.0,28144.0,0.0716]
[1680455175974,0.02676109,28146.0,28145.0,0.1211]
[1680455177169,0.01976109,28146.0,28145.0,0.1221]
[1680455177969,0.00876109,28146.0,28145.0,0.1211]
[1680455178174,0.01376109,28146.0,28145.0,0.1211]
[1680455178375,0.005,28146.0,28145.0,0.1211]
[1680455178969,0.29476254,28149.0,28145.0,0.1211]
[1680455179177,0.29476254,28149.0,28147.0,0.0711]
[1680455180275,0.12432865,28149.0,28147.0,0.0711]
[1680455180472,0.21200394,28148.0,28147.0,0.0721]
[1680455180679,0.17040374,28148.0,28147.0,0.3728]
[1680455181873,0.17040374,28148.0,28147.0,0.3738]
[1680455182065,0.22363239,28149.0,28148.0,0.05]
[1680455182272,0.17040374,28149.0,28148.0,0.1912]
[1680455183779,0.17140374,28149.0,28148.0,0.2002]
[1680455184587,0.17040374,28149.0,28148.0,0.1912]
[1680455184781,0.22579288,28149.0,28148.0,0.2002]
[1680455185680,0.05538914,28149.0,28148.0,0.2002]
[1680455187983,0.05438914,28149.0,28148.0,0.1912]
[1680455188186,0.001,28149.0,28148.0,0.2022]
[1680455189176,0.005,28149.0,28148.0,0.1912]
[1680455189582,0.001,28149.0,28148.0,0.2022]
[1680455190077,0.22040374,28153.0,28148.0,0.1932]
[1680455190277,0.17040374,28153.0,28151.0,0.0711]
[1680455191981,0.19440374,28153.0,28152.0,0.0708]
[1680455192681,0.17040374,28153.0,28152.0,0.0708]
[1680455192881,0.18840374,28153.0,28152.0,0.0708]
[1680455193386,0.18840374,28153.0,28152.0,0.0718]
[1680455193581,0.17040374,28153.0,28152.0,0.0708]
[1680455193782,0.18840374,28153.0,28152.0,0.0718]
[1680455195584,0.28000394,28153.0,28152.0,0.0718]
[1680455195978,0.068,28153.0,28152.0,0.0718]
[1680455196375,0.068,28153.0,28152.0,0.0721]
[1680455197884,0.28073045,28153.0,28152.0,0.0721]
[1680455198583,0.068,28153.0,28152.0,0.0721]
[1680455198771,0.018,28153.0,28152.0,0.0721]
[1680455199481,0.23073922,28153.0,28152.0,0.0721]
[1680455199682,0.28073922,28153.0,28152.0,0.0721]
[1680455199882,0.068,28153.0,28152.0,0.0721]
[1680455200781,0.3687,28153.0,28152.0,0.0721]
[1680455202081,0.4398,28153.0,28152.0,0.001]
[1680455202985,0.61000859,28153.0,28152.0,0.001]
[1680455205487,0.56000859,28153.0,28152.0,0.001]
[1680455208891,0.56000859,28153.0,28152.0,0.00087649]
[1680455210488,0.60256073,28153.0,28152.0,0.00087649]
[1680455211594,0.0891,28153.0,28152.0,0.00087649]
[1680455211793,0.018,28153.0,28152.0,0.07197649]
[1680455211997,0.18821724,28153.0,28152.0,0.07197649]
[1680455212194,0.18821724,28153.0,28152.0,0.13025969]
[1680455213589,0.018,28153.0,28152.0,0.13025969]
[1680455214611,0.17021724,28154.0,28152.0,0.1293832]
[1680455214811,0.011,28153.0,28152.0,0.0592832]
[1680455215009,0.011,28153.0,28152.0,0.1303832]
[1680455215404,0.005,28153.0,28152.0,0.1303832]
[1680455215904,0.005,28153.0,28152.0,0.13352032]
[1680455216404,0.17021724,28154.0,28152.0,0.13452032]
[1680455216605,0.17021724,28154.0,28153.0,0.0707]
[1680455217905,0.3007,28155.0,28153.0,0.0727]
[1680455218108,0.3007,28155.0,28154.0,0.0711]
[1680455218908,0.24081724,28156.0,28154.0,0.0711]
[1680455219208,0.005,28155.0,28154.0,0.0721]
[1680455220110,0.24081724,28156.0,28154.0,0.0721]
[1680455220306,0.018,28155.0,28154.0,0.0721]
[1680455220506,0.068,28155.0,28154.0,0.0721]
[1680455220813,0.018,28155.0,28154.0,0.0721]
[1680455221215,0.18821724,28155.0,28154.0,0.072]
[1680455221607,0.18121724,28155.0,28154.0,0.072]
[1680455225513,0.22376073,28155.0,28154.0,0.072]
[1680455226012,0.011,28155.0,28154.0,0.072]
[1680455226719,0.22386234,28155.0,28154.0,0.072]
[1680455227517,0.25440472,28156.0,28154.0,0.071]
[1680455227813,0.25440472,28156.0,28155.0,0.071]
[1680455229320,0.26540472,28156.0,28155.0,0.071]
[1680455229715,0.25440472,28156.0,28155.0,0.072]
[1680455230013,0.27840472,28156.0,28155.0,0.072]
[1680455230213,0.26540472,28156.0,28155.0,0.072]
[1680455230817,0.27840472,28156.0,28155.0,0.072]
[1680455231022,0.27840472,28156.0,28155.0,0.08341732]
[1680455231721,0.011,28156.0,28155.0,0.08341732]
[1680455232024,0.31540472,28156.0,28155.0,0.08341732]
[1680455232225,0.26540472,28156.0,28155.0,0.08341732]
[1680455233021,0.18126557,28156.0,28155.0,0.08341732]
[1680455233813,0.17026557,28156.0,28155.0,0.08241732]
[1680455234018,0.011,28156.0,28155.0,0.15421732]
[1680455234220,0.011,28156.0,28155.0,0.20421732]
[1680455234419,0.22278124,28158.0,28156.0,0.05]
[1680455234623,0.22278124,28158.0,28157.0,0.071]
[1680455235023,0.05251567,28158.0,28157.0,0.1417]
[1680455235222,0.17026557,28159.0,28157.0,0.1417]
[1680455235424,0.17026557,28159.0,28158.0,0.0706]
[1680455235621,0.17026557,28159.0,28158.0,0.071]
[1680455236321,0.14489457,28161.0,28158.0,0.2831]
[1680455236527,0.81310759,28163.0,28160.0,0.3007]
[1680455236528,0.21283196,28163.0,28160.0,0.3007]
[1680455236828,0.28333196,28163.0,28161.0,0.05]
[1680455237016,0.3712,28163.0,28161.0,0.05]
[1680455237223,0.3712,28163.0,28160.0,0.071]
[1680455237425,0.0705,28163.0,28160.0,0.071]
[1680455238621,0.0845,28163.0,28160.0,0.073]
[1680455238822,0.0845,28163.0,28160.0,0.072]
[1680455239124,0.05,28162.0,28160.0,0.072]
[1680455240317,0.3812,28163.0,28160.0,0.072]
[1680455240722,0.05,28162.0,28160.0,0.072]
[1680455241121,0.06,28162.0,28160.0,0.072]
[1680455241524,0.071,28161.0,28160.0,0.002]
[1680455242122,0.1308,28162.0,28160.0,0.001]
[1680455242529,0.014,28161.0,28160.0,0.002]
[1680455243132,0.06,28162.0,28160.0,0.001]
[1680455243325,0.01,28162.0,28160.0,0.001]
[1680455243525,0.131,28162.0,28160.0,0.001]
[1680455244228,0.014,28161.0,28160.0,0.002]
[1680455244625,0.071,28162.0,28160.0,0.05]
[1680455244827,0.085,28162.0,28160.0,0.052]
[1680455245133,0.014,28161.0,28160.0,0.051]
[1680455245331,0.064,28161.0,28160.0,0.001]
[1680455245534,0.014,28161.0,28160.0,0.001]
[1680455245827,0.085,28162.0,28160.0,0.02182997]
[1680455247127,0.085,28162.0,28160.0,0.01982997]
[1680455247431,0.064,28161.0,28160.0,0.001]
[1680455247634,0.085,28162.0,28160.0,0.002]
[1680455248331,0.16989714,28161.0,28160.0,0.001]
[1680455249531,0.25489714,28162.0,28160.0,0.3017]
[1680455249936,0.16989714,28162.0,28161.0,0.071]
[1680455250137,0.16989714,28162.0,28161.0,0.121]
[1680455250336,0.18389714,28162.0,28161.0,0.121]
[1680455250731,0.25489714,28162.0,28161.0,0.05]
[1680455250932,0.25489714,28162.0,28161.0,0.051]
[1680455251327,0.25089714,28162.0,28161.0,0.051]
[1680455252038,0.17989714,28162.0,28161.0,0.122]
[1680455252838,0.01,28162.0,28161.0,0.122]
[1680455253430,0.17989714,28162.0,28161.0,0.122]
[1680455255443,0.01,28162.0,28161.0,0.122]
[1680455259039,0.01,28162.0,28161.0,0.072]
[1680455261045,0.01,28162.0,28161.0,0.09165306]
[1680455261845,0.05258256,28166.0,28162.0,0.05]
[1680455262046,0.16989714,28168.0,28165.0,0.0709]
[1680455262238,0.16989714,28168.0,28163.0,0.5122]
[1680455262239,0.16989714,28168.0,28167.0,0.071]
[1680455262939,0.004,28168.0,28167.0,0.071]
[1680455263135,0.25840472,28168.0,28167.0,0.071]
[1680455263337,0.31066046,28168.0,28167.0,0.073]
[1680455264644,0.48899457,28168.0,28167.0,0.002]
[1680455266250,0.38166046,28168.0,28167.0,0.002]
[1680455267041,0.12725574,28168.0,28167.0,0.002]
[1680455267241,0.38166046,28168.0,28167.0,0.002]
[1680455267444,0.43166046,28168.0,28167.0,0.002]
[1680455267847,0.38166046,28168.0,28167.0,0.002]
[1680455270549,0.5515069,28168.0,28167.0,0.002]
[1680455270753,0.29710218,28168.0,28167.0,0.002]
[1680455272152,0.29700218,28168.0,28167.0,0.002]
[1680455272548,0.12715574,28168.0,28167.0,0.002]
[1680455272748,0.29700218,28168.0,28167.0,0.002]
[1680455274645,0.12715574,28168.0,28167.0,0.3027]
[1680455274852,0.05625574,28168.0,28167.0,0.3737]
[1680455275356,0.05625574,28168.0,28167.0,0.4447]
[1680455275552,0.05625574,28168.0,28167.0,0.3737]
[1680455276063,0.05625574,28168.0,28167.0,0.39704364]
[1680455276357,0.05625574,28168.0,28167.0,0.32604364]
[1680455277151,0.05625574,28168.0,28167.0,0.39674364]
[1680455282356,0.05625574,28168.0,28167.0,0.46734364]
[1680455282561,0.05625574,28168.0,28167.0,0.39674364]
[1680455284567,0.12705574,28168.0,28167.0,0.02534364]
[1680455284864,0.42775574,28168.0,28167.0,0.02534364]
[1680455285264,0.47795574,28168.0,28167.0,0.02534364]
[1680455289068,0.73236046,28168.0,28167.0,0.02534364]
[1680455289266,0.73236046,28168.0,28161.0,0.0708]
[1680455289267,0.44640472,28168.0,28161.0,0.0708]
[1680455289468,0.44640472,28168.0,28158.0,0.1204]
[1680455289469,0.071,28162.0,28158.0,0.1204]
[1680455289766,0.071,28160.0,28158.0,0.0704]
[1680455290967,0.071,28160.0,28159.0,0.0067346]
[1680455291663,0.071,28160.0,28159.0,0.3074346]
[1680455292055,0.12310627,28161.0,28159.0,0.3074346]
[1680455292859,0.003,28160.0,28159.0,0.3084346]
[1680455293369,0.12610627,28161.0,28159.0,0.3084346]
[1680455293869,0.003,28160.0,28159.0,0.3084346]
[1680455294370,0.12610627,28161.0,28159.0,0.3084346]
[1680455294756,0.003,28160.0,28159.0,0.3084346]
[1680455296371,0.12610627,28161.0,28159.0,0.3084346]
[1680455296772,0.12310627,28161.0,28159.0,0.3074346]
[1680455296976,0.003,28160.0,28159.0,0.3084346]
[1680455297275,0.12310627,28161.0,28159.0,0.3074346]
[1680455297469,0.12610627,28161.0,28160.0,0.05]
[1680455297774,0.12310627,28161.0,28160.0,0.05]
[1680455298674,0.12310627,28161.0,28159.0,0.3084346]
[1680455299680,0.12610627,28161.0,28160.0,0.051]
[1680455300176,0.12610627,28161.0,28160.0,0.05]
[1680455300576,0.12310627,28161.0,28160.0,0.05]
[1680455300775,0.12610627,28161.0,28160.0,0.051]
[1680455301476,0.12610627,28161.0,28160.0,0.001]
[1680455304174,0.003,28161.0,28160.0,0.072]
[1680455305975,0.003,28161.0,28160.0,0.07888769]
[1680455306577,0.003,28161.0,28160.0,0.12888769]
[1680455309383,0.002,28161.0,28160.0,0.12788769]
[1680455312779,0.002,28161.0,28160.0,0.42858769]
[1680455313287,0.0709,28165.0,28160.0,0.43258769]
[1680455313480,0.0709,28165.0,28164.0,0.3007]
[1680455313681,0.2409497,28165.0,28164.0,0.3007]
[1680455314079,0.0709,28165.0,28164.0,0.3007]
[1680455315584,0.28346212,28165.0,28164.0,0.3007]
[1680455315790,0.0739,28165.0,28164.0,0.3027]
[1680455316678,0.0733,28165.0,28164.0,0.3027]
[1680455316878,0.28597898,28165.0,28164.0,0.3027]
[1680455318189,0.0733,28165.0,28164.0,0.3027]
[1680455318386,0.21568586,28165.0,28164.0,0.4446]
[1680455318592,0.003,28165.0,28164.0,0.4446]
[1680455319090,0.17313583,28165.0,28164.0,0.4446]
[1680455320690,0.003,28165.0,28164.0,0.4446]
[1680455321086,0.003,28165.0,28164.0,0.45714537]
[1680455321991,0.003,28165.0,28164.0,0.38624537]
[1680455327287,0.0736,28165.0,28164.0,0.31524537]
[1680455327896,0.0736,28165.0,28164.0,0.01454537]
[1680455330489,0.28628586,28165.0,28164.0,0.01454537]
[1680455331995,0.21568586,28165.0,28164.0,0.01454537]
[1680455334000,0.21579517,28165.0,28164.0,0.01454537]
[1680455335690,0.21579517,28165.0,28164.0,0.01446521]
[1680455338004,0.003,28165.0,28164.0,0.01446521]
[1680455338601,0.003,28165.0,28164.0,0.31516521]
[1680455346002,0.17323368,28165.0,28164.0,0.31516521]
[1680455348714,0.003,28165.0,28164.0,0.31516521]
[1680455352107,0.003,28165.0,28164.0,0.38596521]
[1680455352406,0.003,28165.0,28164.0,0.68666521]
[1680455362033,0.003,28165.0,28164.0,0.75726521]
[1680455372138,0.003,28165.0,28164.0,0.75756521]
[1680455375437,0.003,28165.0,28164.0,0.89956521]
[1680455377040,0.00223217,28165.0,28164.0,0.89956521]
[1680455377244,0.22790269,28170.0,28165.0,0.05]
[1680455377544,0.22790269,28170.0,28169.0,0.3007]
[1680455379044,0.24590269,28170.0,28169.0,0.3027]
[1680455382047,0.17550269,28170.0,28169.0,0.3027]
[1680455384635,0.17550269,28170.0,28169.0,0.6034]
[1680455384840,0.17550269,28170.0,28169.0,0.61470821]
[1680455386847,0.06999045,28170.0,28169.0,0.61470821]
[1680455391854,0.06999045,28170.0,28169.0,0.31400821]
[1680455392049,0.14069045,28170.0,28169.0,0.31400821]
[1680455398050,0.19069045,28170.0,28169.0,0.01330821]
[1680455398355,0.40348562,28170.0,28169.0,0.002]
[1680455398553,0.70066125,28170.0,28169.0,0.002]
[1680455398753,0.43786608,28170.0,28169.0,0.002]
[1680455400352,0.48786608,28170.0,28169.0,0.002]
[1680455400548,0.43786608,28170.0,28169.0,0.002]
[1680455400749,0.35355737,28170.0,28169.0,0.002]
[1680455400951,0.40355737,28170.0,28169.0,0.002]
[1680455401451,0.35355737,28170.0,28169.0,0.002]
[1680455403562,0.40355737,28170.0,28169.0,0.002]
[1680455403963,0.05,28169.0,28166.0,0.071]
[1680455404259,0.17031012,28167.0,28166.0,0.071]
[1680455404464,0.121,28167.0,28163.0,0.0714]
[1680455404663,0.071,28164.0,28162.0,0.3007]
[1680455404963,0.0706,28163.0,28162.0,0.3007]
[1680455406965,0.0766,28163.0,28162.0,0.3017]
[1680455412064,0.077,28163.0,28162.0,0.3017]
[1680455413665,0.24732306,28163.0,28162.0,0.3017]
[1680455415768,0.31792306,28163.0,28162.0,0.3017]
[1680455418170,0.1476,28163.0,28162.0,0.3017]
[1680455419072,0.05,28162.0,28157.0,0.121]
[1680455419369,0.0706,28159.0,28157.0,0.121]
[1680455421569,0.0726,28159.0,28157.0,0.135]
[1680455421969,0.0724,28159.0,28157.0,0.1346]
[1680455422360,0.0774,28159.0,28157.0,0.1216]
[1680455423264,0.0774,28159.0,28157.0,0.0716]
[1680455423570,0.14493688,28158.0,28152.0,0.05]
[1680455423767,0.071,28153.0,28152.0,0.05]
[1680455424866,0.073,28153.0,28152.0,0.063]
[1680455425366,0.073,28153.0,28152.0,0.013]
[1680455425770,0.3737,28153.0,28152.0,0.013]
[1680455425972,0.3717,28153.0,28151.0,0.121]
[1680455427185,0.3787,28153.0,28152.0,0.001]
[1680455427480,0.3717,28153.0,28151.0,0.121]
[1680455427777,0.3847,28153.0,28151.0,0.072]
[1680455428181,0.3837,28153.0,28151.0,0.071]
[1680455428575,0.3907,28153.0,28151.0,0.071]
[1680455430477,0.0706,28152.0,28150.0,0.05]
[1680455430680,0.1206,28151.0,28148.0,0.4212]
[1680455430979,0.05,28150.0,28148.0,0.3712]
[1680455431183,0.1206,28151.0,28148.0,0.3712]
[1680455431385,0.0706,28151.0,28148.0,0.0705]
[1680455431985,0.062,28152.0,28147.0,0.121]
[1680455432189,0.0704,28149.0,28147.0,0.121]
[1680455432581,0.0704,28149.0,28147.0,0.071]